[Event "*** Titled Tuesday Blitz"]
[Site "Chess.com"]
[Date "2020.01.07"]
[Round "7"]
[White "GadimbayliA"]
[Black "Atakishiyev04"]
[Result "1/2-1/2"]
[WhiteElo "2950"]
[BlackElo "2744"]
[TimeControl "180+2"]
[EndTime "14:39:12 PST"]
[Termination "Game drawn - insufficient material"]

1. e4 {[%clk 0:03:01.9]} 1... e5 {[%clk 0:03:00.3]} 2. Nf3 {[%clk 0:02:43.5]}
2... Nc6 {[%clk 0:02:56.2]} 3. Nc3 {[%clk 0:02:44.6]} 3... Nf6 {[%clk
0:02:56.9]} 4. d4 {[%clk 0:02:45.9]} 4... exd4 {[%clk 0:02:58.8]} 5. Nxd4 {[%clk
0:02:47.8]} 5... Bc5 {[%clk 0:02:59.8]} 6. Nxc6 {[%clk 0:02:49.5]} 6... bxc6
{[%clk 0:03:00.3]} 7. Bd3 {[%clk 0:02:50.7]} 7... O-O {[%clk 0:02:59]} 8. O-O
{[%clk 0:02:51]} 8... Re8 {[%clk 0:03:00.3]} 9. Re1 {[%clk 0:02:44]} 9... d6
{[%clk 0:02:51.4]} 10. Na4 {[%clk 0:02:36.6]} 10... Bb6 {[%clk 0:02:17.1]} 11.
Nxb6 {[%clk 0:02:29.2]} 11... axb6 {[%clk 0:02:19]} 12. b3 {[%clk 0:02:29.7]}
12... Ba6 {[%clk 0:02:20.2]} 13. Bb2 {[%clk 0:02:26.7]} 13... Nd7 {[%clk
0:02:16.8]} 14. c4 {[%clk 0:02:26.4]} 14... Ne5 {[%clk 0:02:12.8]} 15. Bc2
{[%clk 0:02:24.6]} 15... c5 {[%clk 0:02:09.6]} 16. Re3 {[%clk 0:02:24.4]} 16...
Bb7 {[%clk 0:02:03.9]} 17. f4 {[%clk 0:02:10.9]} 17... Ng6 {[%clk 0:02:03.4]}
18. Qg4 {[%clk 0:02:11.2]} 18... Qe7 {[%clk 0:01:53.9]} 19. a4 {[%clk
0:02:06.6]} 19... Bc6 {[%clk 0:01:40.1]} 20. Rae1 {[%clk 0:02:03.3]} 20... Qd7
{[%clk 0:01:27]} 21. Qg3 {[%clk 0:01:47.8]} 21... f6 {[%clk 0:01:19.4]} 22. e5
{[%clk 0:01:34.6]} 22... dxe5 {[%clk 0:01:16.8]} 23. Bxg6 {[%clk 0:01:35.3]}
23... hxg6 {[%clk 0:01:17.8]} 24. fxe5 {[%clk 0:01:36.5]} 24... Qf5 {[%clk
0:01:04.6]} 25. Rf1 {[%clk 0:00:43.8]} 25... Qg5 {[%clk 0:00:57.5]} 26. Qxg5
{[%clk 0:00:36.5]} 26... fxg5 {[%clk 0:00:59.4]} 27. e6 {[%clk 0:00:33]} 27...
Re7 {[%clk 0:01:00.3]} 28. Re5 {[%clk 0:00:32.6]} 28... Rd8 {[%clk 0:00:56.3]}
29. h3 {[%clk 0:00:26.4]} 29... Rd3 {[%clk 0:00:54.5]} 30. Rf2 {[%clk
0:00:19.5]} 30... Rxb3 {[%clk 0:00:52.4]} 31. a5 {[%clk 0:00:12.1]} 31... bxa5
{[%clk 0:00:44.1]} 32. Rxc5 {[%clk 0:00:12]} 32... Rxe6 {[%clk 0:00:44.5]} 33.
Rxa5 {[%clk 0:00:09.4]} 33... Rd3 {[%clk 0:00:41.2]} 34. Rxg5 {[%clk 0:00:08.7]}
34... Rd7 {[%clk 0:00:42.7]} 35. Kh2 {[%clk 0:00:07.6]} 35... Rf7 {[%clk
0:00:40]} 36. Rd2 {[%clk 0:00:06.6]} 36... Rf5 {[%clk 0:00:38.6]} 37. Rxf5
{[%clk 0:00:06.7]} 37... gxf5 {[%clk 0:00:40.5]} 38. Kg3 {[%clk 0:00:08.3]}
38... g5 {[%clk 0:00:37.8]} 39. Rd8+ {[%clk 0:00:09.1]} 39... Kf7 {[%clk
0:00:38.6]} 40. Rc8 {[%clk 0:00:10.4]} 40... Re7 {[%clk 0:00:37.7]} 41. Be5
{[%clk 0:00:11.6]} 41... f4+ {[%clk 0:00:31.6]} 42. Kf2 {[%clk 0:00:11.4]} 42...
Ke6 {[%clk 0:00:21.3]} 43. Rxc7 {[%clk 0:00:07.3]} 43... Rxc7 {[%clk 0:00:22.3]}
44. Bxc7 {[%clk 0:00:09.2]} 44... Kf5 {[%clk 0:00:23.5]} 45. Bd8 {[%clk
0:00:07.4]} 45... g4 {[%clk 0:00:23.2]} 46. hxg4+ {[%clk 0:00:09.3]} 46... Kxg4
{[%clk 0:00:25.1]} 47. c5 {[%clk 0:00:11.2]} 47... Bd5 {[%clk 0:00:24.1]} 48.
Bc7 {[%clk 0:00:12.4]} 48... Bc6 {[%clk 0:00:23.9]} 49. g3 {[%clk 0:00:13.2]}
49... f3 {[%clk 0:00:18.3]} 50. Bd6 {[%clk 0:00:12.9]} 50... Bd5 {[%clk
0:00:19.1]} 51. Ke3 {[%clk 0:00:13.7]} 51... Bc6 {[%clk 0:00:20.2]} 52. Bf4
{[%clk 0:00:14.9]} 52... Bb7 {[%clk 0:00:21.2]} 53. Kf2 {[%clk 0:00:15.9]} 53...
Bc6 {[%clk 0:00:22.2]} 54. Be3 {[%clk 0:00:17.1]} 54... Be4 {[%clk 0:00:20.8]}
55. Bc1 {[%clk 0:00:15.2]} 55... Ba8 {[%clk 0:00:21.5]} 56. Bd2 {[%clk
0:00:16.5]} 56... Bd5 {[%clk 0:00:22.1]} 57. Be1 {[%clk 0:00:16.3]} 57... Bc6
{[%clk 0:00:22.7]} 58. Ke3 {[%clk 0:00:17.8]} 58... Kf5 {[%clk 0:00:21.1]} 59.
Kd4 {[%clk 0:00:16]} 59... Ba8 {[%clk 0:00:22.4]} 60. Bf2 {[%clk 0:00:17.9]}
60... Bc6 {[%clk 0:00:23.4]} 61. Kd3 {[%clk 0:00:15.9]} 61... Kg4 {[%clk
0:00:21.6]} 62. Ke3 {[%clk 0:00:14.4]} 62... Kf5 {[%clk 0:00:21.6]} 63. Kd4
{[%clk 0:00:15.4]} 63... Ba8 {[%clk 0:00:21.1]} 64. Kc4 {[%clk 0:00:16.9]} 64...
Bc6 {[%clk 0:00:21.9]} 65. Kb4 {[%clk 0:00:18.5]} 65... Ke4 {[%clk 0:00:21.4]}
66. Ka5 {[%clk 0:00:19.9]} 66... Bd7 {[%clk 0:00:20.5]} 67. Kb6 {[%clk
0:00:20.5]} 67... Kd5 {[%clk 0:00:21.8]} 68. Be1 {[%clk 0:00:19.9]} 68... Bg4
{[%clk 0:00:16]} 69. c6 {[%clk 0:00:20.2]} 69... Ke4 {[%clk 0:00:12.1]} 70. Bf2
{[%clk 0:00:20.3]} 70... Kd3 {[%clk 0:00:11.6]} 71. c7 {[%clk 0:00:19.5]} 71...
Ke2 {[%clk 0:00:12.5]} 72. Bc5 {[%clk 0:00:20.6]} 72... f2 {[%clk 0:00:11]} 73.
Bxf2 {[%clk 0:00:21.3]} 73... Kxf2 {[%clk 0:00:12.9]} 74. Kb7 {[%clk 0:00:22.9]}
74... Kxg3 {[%clk 0:00:13.9]} 75. c8=Q {[%clk 0:00:24.4]} 75... Bxc8+ {[%clk
0:00:15.2]} 1/2-1/2

[Event "*** Titled Tuesday Blitz"]
[Site "Chess.com"]
[Date "2020.01.07"]
[Round "7"]
[White "The_Chess_Coach"]
[Black "Gogolev_Artemy"]
[Result "1/2-1/2"]
[WhiteElo "2226"]
[BlackElo "2457"]
[TimeControl "180+2"]
[EndTime "14:39:31 PST"]
[Termination "Game drawn by agreement"]

1. d4 {[%clk 0:03:01.9]} 1... Nf6 {[%clk 0:02:59.8]} 2. c4 {[%clk 0:02:48.1]}
2... e6 {[%clk 0:02:58.4]} 3. Nc3 {[%clk 0:02:48.1]} 3... Bb4 {[%clk 0:02:59.4]}
4. e3 {[%clk 0:02:48.9]} 4... O-O {[%clk 0:02:59.4]} 5. Bd2 {[%clk 0:02:49.2]}
5... d5 {[%clk 0:02:58.5]} 6. cxd5 {[%clk 0:02:49.5]} 6... exd5 {[%clk
0:02:59.8]} 7. Nf3 {[%clk 0:02:51.4]} 7... Bd6 {[%clk 0:02:44.3]} 8. Bd3 {[%clk
0:02:49.5]} 8... a6 {[%clk 0:02:44.9]} 9. h3 {[%clk 0:02:49.6]} 9... b6 {[%clk
0:02:46]} 10. O-O {[%clk 0:02:49.1]} 10... Bb7 {[%clk 0:02:47.1]} 11. Rc1 {[%clk
0:02:50.1]} 11... Nbd7 {[%clk 0:02:48.1]} 12. Qc2 {[%clk 0:02:41.6]} 12... Qe7
{[%clk 0:02:45.5]} 13. a3 {[%clk 0:02:34.7]} 13... Ne4 {[%clk 0:02:45.7]} 14. b4
{[%clk 0:02:28.5]} 14... Nxd2 {[%clk 0:02:26.9]} 15. Qxd2 {[%clk 0:02:24.6]}
15... Nf6 {[%clk 0:02:23.7]} 16. Qc2 {[%clk 0:02:18.9]} 16... Ne4 {[%clk
0:02:22.1]} 17. Nd2 {[%clk 0:02:19]} 17... f5 {[%clk 0:02:22.8]} 18. Nf3 {[%clk
0:01:43.1]} 18... Rae8 {[%clk 0:02:18]} 19. Qb3 {[%clk 0:01:43]} 19... Nxc3
{[%clk 0:02:12.9]} 20. Qxc3 {[%clk 0:01:38.6]} 20... g5 {[%clk 0:02:04.7]} 21.
Ne5 {[%clk 0:01:37.9]} 21... f4 {[%clk 0:01:46.4]} 22. exf4 {[%clk 0:01:29.4]}
22... gxf4 {[%clk 0:01:47.4]} 23. Rce1 {[%clk 0:01:29.1]} 23... Qg5 {[%clk
0:01:47.9]} 24. Nf3 {[%clk 0:01:23.1]} 24... Qg7 {[%clk 0:01:40.5]} 25. Rxe8
{[%clk 0:01:22.5]} 25... Rxe8 {[%clk 0:01:42.4]} 26. Re1 {[%clk 0:01:23.3]}
26... Rxe1+ {[%clk 0:01:41.1]} 27. Qxe1 {[%clk 0:01:25.2]} 27... Qf7 {[%clk
0:01:34.5]} 28. Ng5 {[%clk 0:01:16.3]} 28... Qe7 {[%clk 0:01:35.2]} 29. Qxe7
{[%clk 0:01:02.4]} 29... Bxe7 {[%clk 0:01:37.1]} 30. Ne6 {[%clk 0:00:59]} 30...
Bd6 {[%clk 0:01:32]} 31. Nd8 {[%clk 0:00:46.6]} 31... Bc8 {[%clk 0:01:31.9]} 32.
Nc6 {[%clk 0:00:45.2]} 32... Bd7 {[%clk 0:01:29.4]} 33. Nb8 {[%clk 0:00:45.4]}
33... Be6 {[%clk 0:01:20.1]} 34. Bxa6 {[%clk 0:00:40.3]} 34... f3 {[%clk
0:01:19.4]} 35. Nc6 {[%clk 0:00:34.9]} 35... Kg7 {[%clk 0:01:11.7]} 36. Nd8
{[%clk 0:00:19.7]} 36... Bd7 {[%clk 0:01:06]} 37. Bb7 {[%clk 0:00:20.3]} 37...
fxg2 {[%clk 0:01:04.5]} 38. Kxg2 {[%clk 0:00:20.3]} 38... Be7 {[%clk 0:01:04.4]}
39. Nc6 {[%clk 0:00:18.8]} 39... Bf6 {[%clk 0:01:02.4]} 40. Ne5 {[%clk
0:00:14.6]} 40... Be6 {[%clk 0:01:01.2]} 41. Nf3 {[%clk 0:00:12.9]} 41... Be7
{[%clk 0:00:59.4]} 42. Kg3 {[%clk 0:00:13]} 42... Kf6 {[%clk 0:00:58.7]} 43. h4
{[%clk 0:00:12.1]} 43... Bd6+ {[%clk 0:00:59.1]} 44. Kg2 {[%clk 0:00:12.3]}
44... Bf4 {[%clk 0:00:59.1]} 45. Bc6 {[%clk 0:00:11.5]} 45... Ke7 {[%clk
0:00:56]} 46. a4 {[%clk 0:00:12.8]} 46... Kd6 {[%clk 0:00:57.1]} 47. Be8 {[%clk
0:00:12.3]} 47... c5 {[%clk 0:00:52.5]} 48. bxc5+ {[%clk 0:00:12.8]} 48... bxc5
{[%clk 0:00:53.9]} 49. dxc5+ {[%clk 0:00:14.7]} 49... Kxc5 {[%clk 0:00:55.3]}
50. Bb5 {[%clk 0:00:15]} 50... d4 {[%clk 0:00:55.2]} 51. Ng5 {[%clk 0:00:15.5]}
51... Bd5+ {[%clk 0:00:55.2]} 52. Kf1 {[%clk 0:00:15.5]} 52... h6 {[%clk
0:00:53.2]} 53. Nh3 {[%clk 0:00:12.2]} 53... Bc7 {[%clk 0:00:53]} 54. Ng1 {[%clk
0:00:13]} 54... Bd8 {[%clk 0:00:53.3]} 55. h5 {[%clk 0:00:12.1]} 55... Kb4
{[%clk 0:00:50.3]} 56. Be8 {[%clk 0:00:13.2]} 56... Kc3 {[%clk 0:00:50.2]} 57.
Ne2+ {[%clk 0:00:12.7]} 57... Kc4 {[%clk 0:00:45.9]} 58. Nf4 {[%clk 0:00:12.1]}
58... Bf3 {[%clk 0:00:43.9]} 59. Ke1 {[%clk 0:00:11.4]} 59... Bg5 {[%clk
0:00:41.4]} 60. Bb5+ {[%clk 0:00:12]} 60... Kc3 {[%clk 0:00:41.4]} 61. Ne6
{[%clk 0:00:05]} 61... Bd2+ {[%clk 0:00:41.3]} 62. Kf1 {[%clk 0:00:06.2]} 62...
d3 {[%clk 0:00:37.6]} 63. Nc5 {[%clk 0:00:06.8]} 63... Be2+ {[%clk 0:00:37.3]}
64. Kg2 {[%clk 0:00:08]} 64... Bf4 {[%clk 0:00:36.2]} 65. a5 {[%clk 0:00:08.2]}
65... Bd6 {[%clk 0:00:37]} 66. Nxd3 {[%clk 0:00:07.9]} 66... Bxd3 {[%clk
0:00:36.5]} 67. Bxd3 {[%clk 0:00:09.8]} 67... Kxd3 {[%clk 0:00:37.7]} 68. a6
{[%clk 0:00:11.7]} 68... Bb8 {[%clk 0:00:36.5]} 69. Kf3 {[%clk 0:00:13.6]} 69...
Kd4 {[%clk 0:00:36.6]} 70. Kg4 {[%clk 0:00:14.8]} 70... Ke4 {[%clk 0:00:35.5]}
71. f4 {[%clk 0:00:15.6]} 71... Ba7 {[%clk 0:00:36.4]} 72. Kg3 {[%clk
0:00:14.3]} 72... Bb6 {[%clk 0:00:35.5]} 73. Kg4 {[%clk 0:00:15.2]} 73... Be3
{[%clk 0:00:36.6]} 74. Kh3 {[%clk 0:00:04.9]} 74... Kxf4 {[%clk 0:00:36.8]} 75.
Kh4 {[%clk 0:00:06.8]} 75... Kf3 {[%clk 0:00:34.8]} 76. Kh3 {[%clk 0:00:08.7]}
76... Bf2 {[%clk 0:00:34.9]} 77. Kh2 {[%clk 0:00:08]} 77... Ba7 {[%clk
0:00:35.5]} 78. Kh1 {[%clk 0:00:09]} 78... Bb6 {[%clk 0:00:34.6]} 79. Kh2 {[%clk
0:00:09.7]} 79... Bc5 {[%clk 0:00:34.5]} 80. Kh3 {[%clk 0:00:09.7]} 80... Kf4
{[%clk 0:00:35]} 81. Kh2 {[%clk 0:00:09.5]} 81... Kg4 {[%clk 0:00:35.7]} 82. Kh1
{[%clk 0:00:09.6]} 82... Kxh5 {[%clk 0:00:36.9]} 83. Kh2 {[%clk 0:00:10.7]}
83... Kh4 {[%clk 0:00:38]} 84. Kh1 {[%clk 0:00:11.3]} 1/2-1/2

[Event "*** Titled Tuesday Blitz"]
[Site "Chess.com"]
[Date "2020.01.07"]
[Round "7"]
[White "patrisiii123"]
[Black "ketster"]
[Result "1-0"]
[WhiteElo "2482"]
[BlackElo "2299"]
[TimeControl "180+2"]
[EndTime "14:39:38 PST"]
[Termination "patrisiii123 won by resignation"]

1. e4 {[%clk 0:03:01.9]} 1... e5 {[%clk 0:02:52.5]} 2. Nf3 {[%clk 0:03:02.8]}
2... Nc6 {[%clk 0:02:53.3]} 3. Bc4 {[%clk 0:03:03.9]} 3... Nf6 {[%clk
0:02:53.5]} 4. Ng5 {[%clk 0:02:44.6]} 4... d5 {[%clk 0:02:53.7]} 5. exd5 {[%clk
0:02:46.5]} 5... Na5 {[%clk 0:02:51.4]} 6. Bb5+ {[%clk 0:02:47.5]} 6... c6
{[%clk 0:02:52.2]} 7. dxc6 {[%clk 0:02:48.5]} 7... bxc6 {[%clk 0:02:52.3]} 8.
Qf3 {[%clk 0:02:46.9]} 8... Rb8 {[%clk 0:02:45.8]} 9. Bd3 {[%clk 0:02:47.6]}
9... Bg4 {[%clk 0:02:36.6]} 10. Qg3 {[%clk 0:02:40.3]} 10... Bd6 {[%clk
0:02:31.9]} 11. Ne4 {[%clk 0:02:36.7]} 11... Nxe4 {[%clk 0:02:32.5]} 12. Bxe4
{[%clk 0:02:38.6]} 12... f5 {[%clk 0:02:29.1]} 13. h3 {[%clk 0:02:36.6]} 13...
O-O {[%clk 0:02:18.7]} 14. hxg4 {[%clk 0:02:33.5]} 14... fxe4 {[%clk 0:02:19]}
15. Nc3 {[%clk 0:02:33.3]} 15... Rf4 {[%clk 0:02:06.6]} 16. d3 {[%clk
0:02:18.4]} 16... exd3 {[%clk 0:02:00.3]} 17. Bxf4 {[%clk 0:02:16.6]} 17... exf4
{[%clk 0:01:59.7]} 18. Qxd3 {[%clk 0:02:15.3]} 18... Qe7+ {[%clk 0:01:59.7]} 19.
Qe4 {[%clk 0:02:05]} 19... Rxb2 {[%clk 0:01:53.4]} 20. Qxe7 {[%clk 0:01:52.7]}
20... Bxe7 {[%clk 0:01:53.7]} 21. O-O-O {[%clk 0:01:53.1]} 21... Ba3 {[%clk
0:01:48.2]} 22. Nb1 {[%clk 0:01:51.3]} 22... Rxa2+ {[%clk 0:01:45]} 23. Nxa3
{[%clk 0:01:52.8]} 23... Rxa3 {[%clk 0:01:46.9]} 24. Rd8+ {[%clk 0:01:49.9]}
24... Kf7 {[%clk 0:01:46.9]} 25. Rxh7 {[%clk 0:01:46]} 25... Nc4 {[%clk
0:01:42.2]} 26. Kd1 {[%clk 0:01:35]} 26... Kg6 {[%clk 0:01:39.7]} 27. Rh3 {[%clk
0:01:29.3]} 27... Ra1+ {[%clk 0:01:27.4]} 28. Ke2 {[%clk 0:01:29.6]} 28... Ra2
{[%clk 0:01:26.3]} 29. Rc3 {[%clk 0:01:29.5]} 29... Ne5 {[%clk 0:01:26.5]} 30.
Rc5 {[%clk 0:01:19.2]} 30... Kf6 {[%clk 0:01:20.5]} 31. g5+ {[%clk 0:01:19.8]}
31... Ke7 {[%clk 0:01:17.4]} 32. Rc8 {[%clk 0:01:14.7]} 32... Kd6 {[%clk
0:01:16.6]} 33. Rc3 {[%clk 0:01:14.7]} 33... a5 {[%clk 0:01:12.2]} 34. Rd8+
{[%clk 0:01:12.2]} 34... Ke7 {[%clk 0:01:02.3]} 35. Ra8 {[%clk 0:01:10.4]} 35...
a4 {[%clk 0:00:59.9]} 36. Ra7+ {[%clk 0:01:08.4]} 36... Kd6 {[%clk 0:00:38.1]}
37. Rxg7 {[%clk 0:00:58.8]} 37... Ra1 {[%clk 0:00:37.4]} 38. Ra7 {[%clk
0:00:58]} 38... Rg1 {[%clk 0:00:37.4]} 39. Rxa4 {[%clk 0:00:50.6]} 39... Rxg2
{[%clk 0:00:36.4]} 40. Rxf4 {[%clk 0:00:51]} 40... Rxg5 {[%clk 0:00:36.8]} 41.
Re3 {[%clk 0:00:49.4]} 41... Kd5 {[%clk 0:00:33.5]} 42. Ra4 {[%clk 0:00:43.3]}
42... Rg2 {[%clk 0:00:33.8]} 43. Ra5+ {[%clk 0:00:40.6]} 43... c5 {[%clk
0:00:34.6]} 44. Rxe5+ {[%clk 0:00:41.8]} 44... Kxe5 {[%clk 0:00:35.2]} 45. Rxc5+
{[%clk 0:00:43.5]} 45... Kd4 {[%clk 0:00:36.6]} 46. Rh5 {[%clk 0:00:43.1]} 46...
Kc3 {[%clk 0:00:33.5]} 47. Rc5+ {[%clk 0:00:43.6]} 47... Kd4 {[%clk 0:00:34]}
48. Rc8 {[%clk 0:00:45.5]} 48... Rg1 {[%clk 0:00:30.7]} 49. c3+ {[%clk
0:00:46.6]} 49... Ke4 {[%clk 0:00:30.1]} 50. f3+ {[%clk 0:00:44.3]} 50... Ke5
{[%clk 0:00:29.8]} 51. Rc5+ {[%clk 0:00:43]} 51... Kd6 {[%clk 0:00:29.2]} 52.
Rh5 {[%clk 0:00:43.9]} 52... Rc1 {[%clk 0:00:28.9]} 53. Kd3 {[%clk 0:00:44.7]}
53... Rd1+ {[%clk 0:00:27]} 54. Kc4 {[%clk 0:00:45.8]} 54... Rf1 {[%clk
0:00:26.5]} 55. Rf5 {[%clk 0:00:46.8]} 55... Ke6 {[%clk 0:00:24.1]} 56. Rf8
{[%clk 0:00:47.7]} 56... Ke5 {[%clk 0:00:24.1]} 57. Kc5 {[%clk 0:00:48.1]} 57...
Rc1 {[%clk 0:00:21.6]} 58. c4 {[%clk 0:00:49.2]} 58... Ke6 {[%clk 0:00:22.6]}
59. f4 {[%clk 0:00:49.2]} 59... Ke7 {[%clk 0:00:23.5]} 60. Rf5 {[%clk
0:00:49.2]} 60... Ke6 {[%clk 0:00:24.3]} 61. Re5+ {[%clk 0:00:50.4]} 61... Kf6
{[%clk 0:00:21.4]} 62. Rd5 {[%clk 0:00:51.8]} 62... Rf1 {[%clk 0:00:19.4]} 63.
f5 {[%clk 0:00:53.1]} 63... Rc1 {[%clk 0:00:17.6]} 64. Kb5 {[%clk 0:00:53]}
64... Rc2 {[%clk 0:00:13.1]} 65. c5 {[%clk 0:00:53.8]} 65... Rb2+ {[%clk
0:00:10.6]} 66. Kc6 {[%clk 0:00:55]} 66... Rc2 {[%clk 0:00:08.5]} 67. Kd6 {[%clk
0:00:55.7]} 67... Kf7 {[%clk 0:00:03.9]} 68. c6 {[%clk 0:00:55.2]} 68... Ke8
{[%clk 0:00:04.4]} 69. Kc7 {[%clk 0:00:56.4]} 69... Ke7 {[%clk 0:00:04.4]} 70.
Re5+ {[%clk 0:00:52.2]} 70... Kf6 {[%clk 0:00:05]} 71. Rd5 {[%clk 0:00:52.9]}
71... Ke7 {[%clk 0:00:05.5]} 72. Kb7 {[%clk 0:00:53.4]} 72... Rb2+ {[%clk
0:00:04.5]} 73. Kc8 {[%clk 0:00:54.8]} 73... Ke8 {[%clk 0:00:04.5]} 74. c7
{[%clk 0:00:54.4]} 74... Ke7 {[%clk 0:00:05.8]} 75. Rd4 {[%clk 0:00:45.9]} 75...
Ke8 {[%clk 0:00:04]} 76. Re4+ {[%clk 0:00:46.6]} 76... Kf7 {[%clk 0:00:05.2]}
77. Kd7 {[%clk 0:00:47]} 77... Rd2+ {[%clk 0:00:06.2]} 78. Kc6 {[%clk
0:00:47.1]} 78... Rc2+ {[%clk 0:00:07.7]} 79. Kd6 {[%clk 0:00:40]} 79... Rd2+
{[%clk 0:00:08.8]} 80. Kc5 {[%clk 0:00:40.7]} 80... Rc2+ {[%clk 0:00:10.3]} 81.
Rc4 {[%clk 0:00:41.6]} 1-0

[Event "*** Titled Tuesday Blitz"]
[Site "Chess.com"]
[Date "2020.01.07"]
[Round "7"]
[White "Induwara_IM"]
[Black "volcanoexplorer"]
[Result "0-1"]
[WhiteElo "2370"]
[BlackElo "2557"]
[TimeControl "180+2"]
[EndTime "14:39:52 PST"]
[Termination "volcanoexplorer won by checkmate"]

1. d4 {[%clk 0:02:58.8]} 1... Nf6 {[%clk 0:03:01.1]} 2. c4 {[%clk 0:02:59.5]}
2... e6 {[%clk 0:03:02.6]} 3. Nf3 {[%clk 0:02:59.5]} 3... b6 {[%clk 0:03:02.1]}
4. a3 {[%clk 0:03:00.2]} 4... Bb7 {[%clk 0:03:01.6]} 5. Nc3 {[%clk 0:03:01]}
5... Be7 {[%clk 0:02:58.1]} 6. d5 {[%clk 0:03:00.3]} 6... O-O {[%clk 0:02:53.9]}
7. e4 {[%clk 0:03:00.9]} 7... exd5 {[%clk 0:02:52.7]} 8. cxd5 {[%clk 0:03:00.3]}
8... Re8 {[%clk 0:02:48.4]} 9. Bd3 {[%clk 0:03:00.8]} 9... d6 {[%clk 0:02:45.5]}
10. O-O {[%clk 0:03:01.3]} 10... Nbd7 {[%clk 0:02:46.3]} 11. Re1 {[%clk
0:02:55.7]} 11... a6 {[%clk 0:02:43.4]} 12. h3 {[%clk 0:02:52.8]} 12... Nc5
{[%clk 0:02:39.8]} 13. Bc2 {[%clk 0:02:53.3]} 13... a5 {[%clk 0:02:36.4]} 14.
Nd4 {[%clk 0:02:53.8]} 14... Nfd7 {[%clk 0:02:29.6]} 15. Be3 {[%clk 0:02:37.9]}
15... Ne5 {[%clk 0:02:14.5]} 16. b4 {[%clk 0:02:38.7]} 16... axb4 {[%clk
0:02:12.7]} 17. axb4 {[%clk 0:02:40.6]} 17... Ncd7 {[%clk 0:02:03.3]} 18. Qe2
{[%clk 0:02:28.1]} 18... Nf8 {[%clk 0:01:31.2]} 19. Rxa8 {[%clk 0:02:12.4]}
19... Qxa8 {[%clk 0:01:30.6]} 20. Ncb5 {[%clk 0:02:08.9]} 20... Qb8 {[%clk
0:01:17.4]} 21. Ra1 {[%clk 0:02:03.6]} 21... Bf6 {[%clk 0:01:18.6]} 22. Ra3
{[%clk 0:01:46]} 22... Nfg6 {[%clk 0:01:11.8]} 23. Na7 {[%clk 0:01:41.5]} 23...
h6 {[%clk 0:00:50.8]} 24. b5 {[%clk 0:01:42]} 24... Nd7 {[%clk 0:00:47]} 25.
Nac6 {[%clk 0:01:42.5]} 25... Qc8 {[%clk 0:00:45.5]} 26. Nf5 {[%clk 0:01:37.7]}
26... Nc5 {[%clk 0:00:40.8]} 27. f3 {[%clk 0:01:31.4]} 27... Bg5 {[%clk
0:00:28.8]} 28. Bd4 {[%clk 0:01:28.2]} 28... Qxf5 {[%clk 0:00:21.9]} 29. Ra7
{[%clk 0:00:57]} 29... Bxc6 {[%clk 0:00:19.3]} 30. bxc6 {[%clk 0:00:57.2]} 30...
Nf4 {[%clk 0:00:17.5]} 31. Qf1 {[%clk 0:00:45.2]} 31... Qg6 {[%clk 0:00:17.5]}
32. Kh2 {[%clk 0:00:46.4]} 32... Bh4 {[%clk 0:00:14.6]} 33. Bf2 {[%clk
0:00:45.8]} 33... Bxf2 {[%clk 0:00:09.2]} 34. Qxf2 {[%clk 0:00:47.7]} 34... Re7
{[%clk 0:00:05]} 35. e5 {[%clk 0:00:47.8]} 35... Nfd3 {[%clk 0:00:05.6]} 36. Qd4
{[%clk 0:00:43.3]} 36... dxe5 {[%clk 0:00:06.7]} 37. Qh4 {[%clk 0:00:37.1]}
37... Qd6 {[%clk 0:00:07.1]} 38. Qg3 {[%clk 0:00:32.7]} 38... g6 {[%clk
0:00:08.1]} 39. Kh1 {[%clk 0:00:24.4]} 39... Kg7 {[%clk 0:00:09.5]} 40. Qh4
{[%clk 0:00:21.3]} 40... Qf6 {[%clk 0:00:09.9]} 41. Qc4 {[%clk 0:00:19.8]} 41...
Nf4 {[%clk 0:00:09.4]} 42. Be4 {[%clk 0:00:17.9]} 42... Nxe4 {[%clk 0:00:10]}
43. fxe4 {[%clk 0:00:19.1]} 43... Nh5 {[%clk 0:00:10.4]} 44. Qd3 {[%clk
0:00:17]} 44... Qf4 {[%clk 0:00:10]} 45. d6 {[%clk 0:00:16]} 45... Ng3+ {[%clk
0:00:09.9]} 46. Kg1 {[%clk 0:00:17.2]} 46... cxd6 {[%clk 0:00:06.3]} 47. Rxe7
{[%clk 0:00:18]} 47... Qc1+ {[%clk 0:00:07.5]} 48. Kf2 {[%clk 0:00:17.4]} 48...
Nh1+ {[%clk 0:00:06.6]} 49. Ke2 {[%clk 0:00:17.7]} 49... Qxc6 {[%clk 0:00:07.9]}
50. Qb3 {[%clk 0:00:16.6]} 50... Qxe4+ {[%clk 0:00:07.2]} 51. Kd2 {[%clk
0:00:17.6]} 51... Qf4+ {[%clk 0:00:07.6]} 52. Kc2 {[%clk 0:00:18.6]} 52... Qf6
{[%clk 0:00:08.1]} 53. Rb7 {[%clk 0:00:16.5]} 53... Nf2 {[%clk 0:00:09]} 54.
Qxb6 {[%clk 0:00:15.9]} 54... Qf5+ {[%clk 0:00:09.1]} 55. Kb2 {[%clk 0:00:13.4]}
55... e4 {[%clk 0:00:08.6]} 56. Qd4+ {[%clk 0:00:13.4]} 56... Qf6 {[%clk
0:00:04.5]} 57. Kc3 {[%clk 0:00:11.3]} 57... d5 {[%clk 0:00:02.4]} 58. Qxf6+
{[%clk 0:00:07]} 58... Kxf6 {[%clk 0:00:04.3]} 59. Kd4 {[%clk 0:00:08.4]} 59...
Nd3 {[%clk 0:00:05.2]} 60. Kxd5 {[%clk 0:00:08.7]} 60... e3 {[%clk 0:00:06.8]}
61. Rb6+ {[%clk 0:00:08.3]} 61... Kg5 {[%clk 0:00:06.2]} 62. Kd4 {[%clk
0:00:05.7]} 62... e2 {[%clk 0:00:07.4]} 63. Rb5+ {[%clk 0:00:07.2]} 63... Kf6
{[%clk 0:00:08.4]} 64. Rb6+ {[%clk 0:00:08.4]} 64... Kg7 {[%clk 0:00:09.5]} 65.
Kxd3 {[%clk 0:00:09.6]} 65... e1=Q {[%clk 0:00:10.9]} 66. Rb2 {[%clk 0:00:11.1]}
66... Qg3+ {[%clk 0:00:11.6]} 67. Ke4 {[%clk 0:00:11.6]} 67... f5+ {[%clk
0:00:12.2]} 68. Kd5 {[%clk 0:00:12.7]} 68... Kf6 {[%clk 0:00:13.6]} 69. Kc4
{[%clk 0:00:14]} 69... g5 {[%clk 0:00:14.6]} 70. Re2 {[%clk 0:00:15.2]} 70... g4
{[%clk 0:00:15.7]} 71. hxg4 {[%clk 0:00:16.2]} 71... Qxg4+ {[%clk 0:00:16.9]}
72. Kd3 {[%clk 0:00:18.1]} 72... Kg5 {[%clk 0:00:18]} 73. Rf2 {[%clk 0:00:19.2]}
73... Qg3+ {[%clk 0:00:18.3]} 74. Ke2 {[%clk 0:00:21.1]} 74... h5 {[%clk
0:00:19.2]} 75. Kf1 {[%clk 0:00:22.6]} 75... h4 {[%clk 0:00:19.4]} 76. Rf3
{[%clk 0:00:24]} 76... Qe5 {[%clk 0:00:19.1]} 77. Kg1 {[%clk 0:00:25.5]} 77...
Kg4 {[%clk 0:00:18.5]} 78. Kh1 {[%clk 0:00:26.8]} 78... Qe4 {[%clk 0:00:20]} 79.
Rh3 {[%clk 0:00:27.8]} 79... Qe1+ {[%clk 0:00:19.3]} 80. Kh2 {[%clk 0:00:29.2]}
80... Qf2 {[%clk 0:00:16.5]} 81. Kh1 {[%clk 0:00:28.5]} 81... f4 {[%clk
0:00:17.4]} 82. Kh2 {[%clk 0:00:28.9]} 82... Kf5 {[%clk 0:00:17.2]} 83. Rf3
{[%clk 0:00:29.3]} 83... Qe1 {[%clk 0:00:16.6]} 84. Rh3 {[%clk 0:00:28.2]} 84...
Ke4 {[%clk 0:00:17.7]} 85. Rf3 {[%clk 0:00:29.4]} 85... Qe2 {[%clk 0:00:17.1]}
86. Rh3 {[%clk 0:00:30.5]} 86... Qg4 {[%clk 0:00:18.3]} 87. Ra3 {[%clk
0:00:29.1]} 87... Qe2 {[%clk 0:00:15.7]} 88. Rh3 {[%clk 0:00:27.2]} 88... Qe3
{[%clk 0:00:14.9]} 89. Rxh4 {[%clk 0:00:24.9]} 89... Qg3+ {[%clk 0:00:15.9]} 90.
Kg1 {[%clk 0:00:24.5]} 90... Qxh4 {[%clk 0:00:17.3]} 91. Kf1 {[%clk 0:00:25.4]}
91... Ke3 {[%clk 0:00:17.2]} 92. g3 {[%clk 0:00:26.8]} 92... Qh1# {[%clk
0:00:18.5]} 0-1